{"text_format":"1","workbook":"xlsx","n_sheets":4,"sheets":["メール一括送信先名簿","送信内容設定","メールサーバ接続設定","※Excel事前設定"],"not_rendered":{"charts":0,"images":3,"macros":1,"external_links":0,"defined_names":1,"comments":0,"pivot_tables":0},"unopened":[],"bounds":{"document_bytes":16777216,"sheet_cells":100000,"rows_first":2000,"rows_last":500,"rows_between":2000,"halvings":0,"cell_chars":16384,"cell_head_chars":4096},"cells_cut":0,"cells_raw":0,"read":"whole","date_system":"1900"}

{"sheet":"メール一括送信先名簿","index":0,"n_rows":27,"n_cols":7,"rows_kept":27,"cut":false,"hidden":false,"merged":[[2,1,2,3],[2,4,3,4],[2,5,3,5],[0,2,0,3]]}
[null,null,"【メール一括送信先名簿】",null,null,{"$f":"TODAY()","v":"2020-04-21"}]
[null,"株式会社つくばＩＴパートナー",null,null,null,"全選択"]
[null,"相手先",null,null,"送信\n選択","完了日時","対象者"]
[null,"相手所属先名","相手先名","E-mailアドレス",null,null,{"$f":"COUNTIF(E:E,\"○\")","v":0}]
[1]
[{"$f":"A5+1","v":2}]
[{"$f":"A6+1","v":3}]
[4]
[5]
[6]
[7]
[8]
[9]
[10]
[11]
[12]
[13]
[14]
[15]
[16]
[17]
[18]
[19]
[20]
[21]
[22]
[23]

{"sheet":"送信内容設定","index":1,"n_rows":10,"n_cols":4,"rows_kept":10,"cut":false,"hidden":false,"merged":[[0,1,0,2],[7,1,8,1]]}
[null,"【送信内容設定】",null,{"$f":"TODAY()","v":"2020-04-21"}]
[]
[]
[null,"発信者\nメールアドレス"]
[]
[null,"件名"]
[]
[null,"相手先指定","相手所属先"]
[null,null,"相手先名　様"]
[null,"送信メール本文"]

{"sheet":"メールサーバ接続設定","index":2,"n_rows":8,"n_cols":5,"rows_kept":8,"cut":false,"hidden":false,"merged":[[0,2,0,3]]}
[null,null,"【メールサーバ接続設定】",null,{"$f":"TODAY()","v":"2020-04-21"}]
[]
[]
[null,null,"SMTPサーバ名"]
[null,null,"SMTPサーバポート"]
[null,null,"接続ユーザID"]
[null,null,"接続PSW"]
[null,null,"SSL指定"]

{"sheet":"※Excel事前設定","index":3,"n_rows":3,"n_cols":2,"rows_kept":3,"cut":false,"hidden":false,"merged":[[0,0,0,3]]}
["【事前準備】"]
[]
[null," ツール>参照設定でMicrosoft CDO for Windows 2000 Library選択を追加する"]